bitfinex-derivatives/quotes_ETHF0:USTF0_20251203
["timestamp","ask_amount","ask_price","bid_price","bid_amount"]
[1764779841599,3.2078,3102.0,3100.8,1.9824]
[1764779841793,3.2078,3102.0,3101.9,0.7737]
[1764779842005,40.8,3102.5,3101.9,0.7737]
[1764779842702,40.80886201,3102.5,3101.9,0.78117329]
[1764779842897,0.7692,3102.0,3101.9,0.00747329]
[1764779843297,1.542,3102.0,3101.9,0.00747329]
[1764779843495,0.7692,3102.0,3101.9,0.00747329]
[1764779843897,1.542,3102.0,3101.9,0.00747329]
[1764779844695,1.8712,3102.0,3101.9,0.00747329]
[1764779846007,0.7728,3101.7,3101.1,3.2078]
[1764779846303,40.8,3101.6,3101.4,0.4582]
[1764779846897,3.2078,3101.8,3101.4,0.46227672]
[1764779851196,1.02012837,3101.7,3101.4,0.00407672]
[1764779851406,1.020138,3101.6,3101.2,0.00483699]
[1764779851599,3.2078,3101.3,3101.2,0.00483699]
[1764779852000,0.16118,3101.5,3101.2,0.00483699]
[1764779852207,3.2078,3101.3,3101.2,0.00483699]
[1764779852410,3.2078,3101.3,3101.2,0.00857832]
[1764779852702,24.13107015,3101.3,3100.3,3.2078]
[1764779852904,0.16123,3100.6,3099.6,0.4582]
[1764779853202,1.02102288,3100.5,3100.0,0.4582]
[1764779853506,40.8,3100.5,3100.0,3.666]
[1764779853801,40.8,3100.5,3100.0,3.66840746]
[1764779854000,44.0078,3100.5,3100.0,3.66840746]
[1764779855103,44.0078,3100.5,3100.0,0.46060746]
[1764779855699,0.6981062,3100.4,3100.0,0.46060746]
[1764779856303,44.0078,3100.5,3100.0,0.46060746]
[1764779856505,0.69561782,3100.4,3100.0,0.46060746]
[1764779856905,44.0078,3100.5,3100.0,0.46060746]
[1764779860711,3.2078,3100.5,3100.4,1.5315]
[1764779861412,0.00483699,3100.6,3100.5,1.9642]
[1764779861613,3.2078,3101.3,3101.2,0.7758]
[1764779862017,44.0078,3101.3,3101.0,0.4306]
[1764779863619,40.8,3101.3,3101.0,0.4306]
[1764779864014,40.8,3101.3,3101.2,0.7758]
[1764779864720,0.00483699,3101.5,3101.2,0.7758]
[1764779865018,40.8,3101.4,3101.2,0.7758]
[1764779865620,40.8,3101.4,3101.3,0.7758]
[1764779866215,0.00483699,3101.5,3101.3,0.7758]
[1764779866921,0.00483699,3101.5,3101.4,1.5336]
[1764779868818,0.00483699,3101.5,3101.4,0.7758]
[1764779869019,0.00483699,3101.5,3101.4,1.5336]
[1764779875820,0.16118,3101.4,3101.3,3.07978545]
[1764779876026,6.69525676,3101.4,3100.0,3.66840746]
[1764779876225,3.2078,3101.0,3100.0,3.66840746]
[1764779876428,40.8,3100.9,3100.0,3.66840746]
[1764779877233,3.2078,3100.6,3100.0,0.46060746]
[1764779877732,3.2078,3100.6,3100.5,0.4306]
[1764779878428,3.2078,3100.6,3100.0,0.46060746]
[1764779879530,16.1288,3100.6,3100.0,0.00240746]
[1764779879829,3.2078,3100.1,3100.0,0.43300746]
[1764779880136,3.2116629,3100.1,3100.0,1.20880746]
[1764779880428,3.2116629,3100.1,3100.0,1.96660746]
[1764779880633,0.0038629,3100.1,3100.0,1.96660746]
[1764779881532,3.2078,3101.0,3100.9,0.7758]
[1764779881730,3.2078,3101.4,3101.0,0.4306]
[1764779881930,3.2078,3101.4,3101.3,0.7758]
[1764779882336,3.2078,3101.4,3101.3,1.5336]
[1764779882631,0.00342095,3101.4,3101.3,1.5336]
[1764779884230,3.2078,3101.9,3101.4,1.5204]
[1764779884729,3.21263699,3101.5,3101.0,0.4306]
[1764779884929,3.21263699,3101.5,3101.4,0.7472]
[1764779885331,0.00712945,3101.5,3101.4,1.5204]
[1764779885531,40.96112,3102.6,3102.0,0.4584]
[1764779885532,3.2078,3102.4,3102.0,0.4584]
[1764779886728,3.2078,3103.2,3102.7,1.5204]
[1764779886933,3.2078,3103.2,3103.1,0.7472]
[1764779887128,3.2078,3103.2,3102.6,0.4584]
[1764779887736,3.21536188,3103.2,3102.6,0.4609176]
[1764779888133,3.21536188,3103.2,3103.1,1.5204]
[1764779888735,3.21536188,3103.2,3102.6,0.4609176]
[1764779889138,3.21536188,3103.2,3103.1,0.7472]
[1764779890044,3.21536188,3103.2,3102.6,0.4609176]
[1764779890426,3.21536188,3103.2,3103.1,0.7472]
[1764779890831,3.21536188,3103.2,3102.6,0.4609176]
[1764779892039,3.21536188,3103.2,3103.1,0.7472]
[1764779893832,3.21536188,3103.2,3103.1,1.5204]
[1764779894640,3.2078,3104.4,3103.9,1.5204]
[1764779895033,44.0078,3104.4,3103.9,1.5204]
[1764779895234,44.0078,3104.4,3103.9,0.7472]
[1764779895442,0.7488,3104.0,3103.8,0.4584]
[1764779895643,0.75152171,3104.0,3103.8,0.4584]
[1764779895845,1.5365,3103.9,3103.8,0.4584]
[1764779896146,0.7488,3103.7,3103.6,0.75203699]
[1764779896443,0.00272171,3104.0,3103.6,1.52523699]
[1764779897140,0.00272171,3104.0,3103.9,0.7472]
[1764779897337,0.00272171,3104.0,3103.9,1.5204]
[1764779897556,3.2078,3104.7,3104.0,0.4584]
[1764779898342,7.847,3105.3,3104.0,0.4584]
[1764779898343,3.2078,3105.1,3105.0,1.9788]
[1764779898544,0.00270176,3105.1,3105.0,1.98263171]
[1764779900250,3.2078,3105.5,3105.4,1.5204]
[1764779900546,3.2078,3105.5,3105.4,0.7472]
[1764779900845,3.2078,3105.5,3105.4,1.5204]
[1764779901352,0.0036003,3105.5,3105.4,1.5204]
[1764779905142,0.18394803,3106.0,3105.9,1.5204]
[1764779905341,1.72044803,3106.0,3105.0,3.67003171]
[1764779905547,0.18394803,3106.0,3105.9,1.5204]
[1764779905953,0.18685729,3106.0,3105.9,1.5204]
[1764779906855,0.18685729,3106.0,3105.5,0.4584]
[1764779906856,1.72335729,3106.0,3105.5,0.4584]
[1764779908046,0.18685729,3106.0,3105.9,1.5204]
[1764779909045,1.72335729,3106.0,3105.5,0.4584]
[1764779909755,0.18685729,3106.0,3105.6,1.5204]
[1764779909944,0.18685729,3106.0,3105.9,1.5204]
[1764779910547,1.72335729,3106.0,3105.5,0.4584]
[1764779911058,0.93565729,3106.0,3105.9,0.7472]
[1764779911246,0.18685729,3106.0,3105.9,1.5204]
[1764779911654,1.72335729,3106.0,3105.5,0.4584]
[1764779911855,0.18685729,3106.0,3105.9,1.5204]
[1764779912154,3.2078,3106.8,3106.0,0.4584]
[1764779912355,3.9566,3106.8,3106.7,1.5204]
[1764779912567,3.9566,3106.8,3106.7,0.7472]
[1764779912754,4.7443,3106.8,3106.5,0.4584]
[1764779913061,3.21127227,3106.8,3106.7,1.5204]
[1764779913462,0.00347227,3106.8,3106.7,1.5204]
[1764779914659,1.58527227,3106.8,3106.5,0.4584]
[1764779915556,0.00347227,3106.8,3106.7,1.554]
[1764779917161,3.0639121,3107.2,3107.1,1.554]
[1764779917364,3.2078,3107.2,3107.1,1.554]
[1764779918157,3.21070069,3107.2,3107.1,1.554]
[1764779918363,3.99610069,3107.2,3107.1,1.554]
[1764779918559,1.4495,3107.1,3106.5,0.4584]
[1764779918966,1.4495,3107.1,3106.6,0.219]
[1764779919459,3.21070069,3107.2,3107.1,0.7496]
[1764779919661,3.21070069,3107.2,3107.1,1.539]
[1764779920061,0.7259,3107.1,3107.0,1.2095]
[1764779920267,1.4495,3107.1,3106.6,0.219]
[1764779920770,0.7259,3106.7,3106.6,0.9686]
[1764779920958,1.4495,3106.7,3106.6,0.219]
[1764779921163,0.7259,3107.1,3106.6,3.4268]
[1764779921362,1.4495,3107.1,3106.6,0.219]
[1764779921670,3.21070069,3107.2,3106.6,1.758]
[1764779922267,0.7259,3106.7,3106.6,1.758]
[1764779922662,1.4495,3106.7,3106.6,0.219]
[1764779923670,0.72880069,3107.2,3107.1,0.7496]
[1764779923864,0.72880069,3107.2,3107.1,1.539]
[1764779924265,0.00290069,3107.2,3107.1,1.539]
[1764779924467,1.4495,3107.1,3106.6,0.219]
[1764779924668,3.9337,3106.9,3106.8,0.7496]
[1764779924868,3.9337,3106.9,3106.8,1.539]
[1764779925062,1.61041,3106.7,3106.6,0.08251626]
[1764779925267,1.61041,3106.7,3106.4,0.00482913]
[1764779925268,1.4495,3106.5,3106.4,0.00482913]
[1764779925468,4.6573,3106.5,3106.4,0.00482913]
[1764779925669,5.6660402,3106.5,3106.4,0.00482913]
[1764779925968,5.3494402,3106.5,3106.4,0.00482913]
[1764779926172,5.6723362,3106.5,3106.4,0.00482913]
[1764779927571,5.9889362,3106.5,3106.4,0.00482913]
[1764779927769,0.7259,3106.0,3105.9,0.0259]
[1764779927967,0.7259,3106.0,3105.9,0.7755]
[1764779928667,1.4495,3106.0,3105.9,0.0259]
[1764779929275,1.45430291,3106.3,3106.2,0.7496]
[1764779929576,0.69934888,3106.3,3106.2,1.539]
[1764779929773,1.42524888,3106.3,3106.2,1.539]
[1764779929974,0.69934888,3106.3,3106.2,1.539]
[1764779930177,0.7259,3106.1,3106.0,1.2095]
[1764779930369,1.42044597,3106.1,3106.0,0.7496]
[1764779930672,1.42044597,3106.1,3106.0,1.9989]
[1764779930673,0.69454597,3106.1,3106.0,1.9989]
[1764779930874,0.00480291,3106.3,3106.2,1.539]
[1764779931066,1.42545883,3106.3,3106.2,1.539]
[1764779931263,1.02335473,3106.3,3106.2,1.539]
[1764779932476,1.4495,3106.1,3106.0,0.7496]
[1764779932676,2.14425592,3106.1,3106.0,0.7496]
[1764779933379,1.42065592,3106.1,3106.0,0.7496]
[1764779933773,2.14425592,3106.1,3105.7,0.0381]
[1764779933973,0.69475592,3106.0,3105.7,0.0381]
[1764779934474,0.00480291,3106.3,3105.7,0.0381]
[1764779934777,1.4495,3105.8,3105.7,0.0381]
[1764779934977,2.14471895,3105.8,3105.7,0.7877]
[1764779935176,2.46874984,3105.8,3105.7,0.7496]
[1764779935374,2.14471895,3105.8,3105.7,0.7496]
[1764779935679,0.7259,3105.7,3105.6,0.75442913]
[1764779935882,2.14471895,3105.7,3105.6,0.00482913]
[1764779936379,0.69521895,3105.7,3105.6,1.54382913]
[1764779936581,2.14471895,3105.7,3105.6,0.00482913]
[1764779936774,2.1448411,3105.7,3105.6,0.00482913]
[1764779937082,1.4212411,3105.7,3105.6,1.54382913]
[1764779937277,0.6953411,3105.7,3105.6,1.54382913]
[1764779937480,1.42123131,3106.0,3105.9,0.7496]
[1764779937681,1.74528688,3106.0,3105.9,1.539]
[1764779939083,1.74528688,3106.0,3105.9,0.7496]
[1764779939383,2.46888688,3106.0,3105.9,0.7496]
[1764779940283,1.01938688,3106.0,3105.9,1.539]
[1764779940588,0.00480291,3106.3,3105.9,1.539]
[1764779940589,0.00480291,3106.3,3106.2,1.539]
[1764779941088,0.7259,3106.1,3106.0,1.9989]
[1764779942089,2.14506925,3106.1,3105.6,0.00482913]
[1764779942286,0.00480291,3106.3,3105.6,0.00482913]
[1764779942596,1.4495,3105.7,3105.6,0.00482913]
[1764779942795,1.4495,3105.3,3105.0,3.21163171]
[1764779942997,2.46930735,3105.3,3105.0,3.21163171]
[1764779943298,0.69558001,3105.3,3105.2,1.5255]
[1764779943601,3.2078,3105.7,3105.2,1.5255]
[1764779943801,0.7625,3105.3,3105.2,1.5255]
[1764779944000,0.7625,3105.3,3105.2,0.7496]
[1764779944197,0.7625,3105.7,3105.6,0.7467]
[1764779944395,2.52062941,3105.7,3105.1,0.00482913]
[1764779944700,1.01922388,3105.6,3105.1,0.00482913]
[1764779944995,3.2078,3105.8,3105.4,1.5226]
[1764779945195,1.01922013,3105.7,3105.4,1.5226]
[1764779945397,3.9703,3105.8,3105.7,0.7467]
[1764779945694,5.72829569,3105.8,3105.7,0.7467]
[1764779945897,0.7625,3105.6,3105.5,1.2241]
[1764779946098,0.7625,3105.6,3105.5,0.7467]
[1764779946300,1.5014,3105.6,3105.3,0.0811]
[1764779946497,0.7625,3105.6,3105.5,0.7467]
[1764779946797,1.5014,3105.4,3105.3,0.0811]
[1764779947293,3.2078,3105.4,3105.3,1.6037]
[1764779947694,4.7092,3105.4,3105.3,0.0811]
[1764779947885,3.2078,3105.4,3105.3,1.5226]
[1764779948303,0.7625,3105.2,3105.1,0.00482913]
[1764779948600,0.7625,3105.2,3105.1,1.52742913]
[1764779948900,1.5014,3105.2,3105.1,0.00482913]
[1764779951093,1.5014,3105.2,3105.1,0.75152913]
[1764779951293,1.5014,3105.2,3105.1,0.00482913]
[1764779951996,0.7625,3105.2,3105.1,0.75152913]
[1764779952194,3.2078,3105.3,3105.2,1.5226]
[1764779952502,3.2078,3105.8,3105.2,1.5226]
[1764779953000,0.7625,3105.3,3105.2,1.5226]
[1764779953393,1.5014,3105.3,3105.2,0.7467]
[1764779953704,0.59785,3106.0,3105.1,0.00482913]
[1764779953705,1.5014,3105.2,3105.1,0.00482913]
[1764779954201,1.5014,3105.1,3105.0,0.00383171]
[1764779954393,1.5014,3104.8,3104.7,0.0935]
[1764779954697,5.03338076,3104.8,3104.7,0.08609584]
[1764779955005,0.7625,3104.1,3104.0,1.9825]
[1764779955302,0.7625,3103.9,3103.8,3.9545]
[1764779955597,0.76575363,3103.9,3103.8,4.73410974]
[1764779955805,1.50465363,3103.9,3103.8,0.00370974]
[1764779956001,1.5014,3103.8,3103.7,0.00482913]
[1764779956297,1.5014,3103.8,3103.0,0.7467]
[1764779956298,0.7625,3103.1,3103.0,0.7467]
[1764779956502,1.5014,3102.2,3102.1,1.13928411]
[1764779956713,1.5014,3101.9,3101.7,3.2078]
[1764779957002,0.7625,3101.8,3101.7,3.95752318]
[1764779957203,44.0078,3102.4,3101.7,4.73342318]
[1764779957204,0.00482913,3102.1,3101.7,4.73342318]
[1764779957394,0.7625,3101.8,3101.7,4.73342318]
[1764779957707,1.5014,3101.8,3101.7,3.21082318]
[1764779957895,0.00482913,3102.1,3101.7,3.95752318]
[1764779958096,0.7625,3101.8,3101.7,3.95752318]
[1764779958301,0.00482913,3102.1,3101.7,3.95752318]
[1764779959698,1.5014,3101.8,3101.7,3.21082318]
[1764779959897,0.7625,3101.8,3101.7,3.21082318]
[1764779960099,0.00482913,3102.1,3101.7,3.95752318]
[1764779960500,1.5014,3101.8,3101.7,3.95752318]
[1764779960701,1.5014,3101.8,3101.7,3.21082318]
[1764779961703,1.5014,3101.8,3101.7,0.00302318]
[1764779963302,1.9353,3101.5,3101.4,0.00482913]
[1764779963508,5.1431,3101.5,3101.4,0.00482913]
[1764779964304,5.14592476,3101.5,3101.4,0.00824187]
[1764779965103,1.5014,3100.9,3100.4,3.2078]
[1764779965405,0.7625,3100.5,3100.4,3.2078]
[1764779965707,3.2078,3101.1,3101.0,1.5226]
[1764779965906,0.00282476,3101.5,3101.0,2.0]
[1764779966110,40.8,3101.4,3101.0,2.00246154]
[1764779966310,0.00282476,3101.5,3101.0,2.00246154]
[1764779966914,40.80282476,3101.5,3101.0,2.00246154]
[1764779967413,40.80282476,3101.5,3101.4,1.5226]
[1764779967615,40.80282476,3101.5,3101.4,0.7467]
[1764779967813,40.80282476,3101.5,3101.0,0.47986154]
[1764779968415,0.00282476,3101.5,3101.4,1.5226]
[1764779968812,0.76532476,3101.5,3101.4,1.5226]
[1764779969011,0.76532476,3101.5,3101.4,0.7467]
[1764779969217,0.7625,3101.3,3101.2,3.2078]
[1764779969406,0.00282476,3101.5,3101.2,4.7304]
[1764779970117,0.00282476,3101.5,3101.4,0.7467]
[1764779970511,0.00282476,3101.5,3101.4,1.5226]
[1764779971415,0.7625,3101.1,3101.0,1.22656154]
[1764779971615,0.00282476,3101.5,3101.0,2.00246154]
[1764779972622,0.7625,3101.1,3101.0,2.00246154]
[1764779972823,3.2078,3101.4,3101.3,1.5226]
[1764779973125,0.00282476,3101.5,3101.4,1.5226]
[1764779974227,0.00282476,3101.5,3101.4,4.7304]
[1764779974426,0.00482913,3102.1,3102.0,1.9978]
[1764779975531,0.00795925,3102.1,3102.0,1.9978]
[1764779978823,0.76365925,3102.1,3102.0,1.2456]
[1764779979030,0.00795925,3102.1,3102.0,1.9978]
[1764779984338,1.48505925,3102.1,3102.0,1.9978]
[1764779984535,1.48505925,3102.1,3102.0,1.2456]
[1764779984741,0.7844,3101.9,3101.8,3.9652]
[1764779984940,0.7844,3101.9,3101.8,4.7524]
[1764779985341,0.00795925,3102.1,3101.8,4.7524]
[1764779985342,0.00795925,3102.1,3102.0,1.9774]
[1764779986241,0.70466127,3102.1,3102.0,1.9774]
[1764779987146,0.7844,3101.9,3101.8,3.9652]
[1764779987446,2.20250899,3101.9,3101.8,3.9652]
[1764779987650,0.69670899,3101.9,3101.8,4.7524]
[1764779987848,0.00795925,3102.1,3102.0,1.9774]
[1764779988040,1.81343301,3102.1,3102.0,1.9774]
[1764779988445,2.53483301,3102.1,3102.0,0.7574]
[1764779988646,1.81343301,3102.1,3102.0,1.9774]
[1764779989345,1.02903301,3102.1,3102.0,1.9774]
[1764779989551,0.70467406,3102.1,3102.0,1.9774]
[1764779990655,0.00795925,3102.1,3102.0,1.9774]
[1764779992449,3.2078,3102.6,3102.5,1.9774]
[1764779992653,4.22853159,3102.6,3102.5,1.9774]
[1764779993355,4.23176214,3102.6,3102.5,1.9774]
[1764779993658,5.01616214,3102.6,3102.5,1.9774]
[1764779994157,5.73756214,3102.6,3102.5,1.9774]
[1764779994357,5.73756214,3102.6,3102.0,0.4328]
[1764779994658,1.02073159,3102.5,3102.0,1.9774]
[1764779994846,2.52653159,3102.4,3102.3,1.5446]
[1764779995256,2.52653159,3102.4,3102.3,0.7574]
[1764779995650,2.52653159,3102.4,3102.0,0.4328]
[1764779995852,1.5058,3102.4,3102.3,0.7574]
[1764779996054,2.52706266,3102.4,3102.3,0.7574]
[1764779996254,2.52706266,3102.4,3102.0,0.4328]
[1764779996451,0.7844,3102.1,3102.0,1.9774]
[1764779997152,1.5058,3102.1,3102.0,1.9774]
[1764779997354,2.20289217,3102.1,3102.0,1.9774]
[1764779997548,2.20289217,3102.1,3102.0,0.7574]
[1764779997761,0.7844,3101.7,3101.6,0.8435]
[1764779997954,1.5058,3101.7,3101.6,0.8435]
[1764779998160,2.52793274,3101.7,3101.6,0.8435]
[1764779999053,2.52793274,3101.7,3101.6,0.0861]
[1764780000267,5.73573274,3101.7,3101.6,0.0861]
[1764780000559,1.02213274,3101.7,3101.6,1.6307]
[1764780000955,1.5058,3101.7,3101.6,0.0861]
[1764780001262,1.02260385,3101.7,3101.6,1.6307]
[1764780002356,1.02268922,3101.7,3101.6,1.6307]
[1764780002561,0.69776026,3101.7,3101.6,1.6307]
[1764780002863,3.9922,3102.1,3102.0,1.9774]
[1764780003061,5.01500651,3102.1,3102.0,1.9774]
[1764780003659,1.5094,3101.7,3101.6,0.0861]
[1764780003866,5.74008264,3101.7,3101.6,0.0861]
[1764780004167,5.74008264,3101.7,3101.6,0.8603]
[1764780004460,5.74008264,3101.7,3101.6,1.589]
[1764780004461,0.69789311,3101.7,3101.6,1.589]
[1764780004653,1.5094,3102.0,3101.6,0.0861]
[1764780004853,1.5094,3101.7,3101.6,0.0861]
[1764780005055,5.74014211,3101.7,3101.0,0.47986154]
[1764780005260,4.7172,3101.1,3101.0,0.00246154]
[1764780005464,5.74014211,3101.1,3101.0,0.00246154]
[1764780005661,5.74014211,3101.1,3100.5,3.6406]
[1764780005662,1.5094,3100.6,3100.5,0.7742]
[1764780005963,2.20739001,3100.6,3100.1,3.2078]
[1764780006164,1.5094,3100.6,3100.1,3.2078]
[1764780006558,1.5094,3100.1,3099.6,3.2078]
[1764780006765,1.5094,3099.7,3099.6,4.71401114]
[1764780006955,0.7788,3099.7,3099.6,4.71401114]
[1764780007161,0.00256516,3100.1,3099.6,4.71401114]
[1764780007558,2.21216113,3100.1,3100.0,0.7742]
[1764780007963,2.21216113,3100.1,3099.6,3.21111114]
[1764780008169,1.51196516,3100.1,3099.6,3.21111114]
[1764780008366,1.5094,3099.7,3099.6,0.00331114]
[1764780009066,1.5094,3099.6,3099.5,0.04353715]
[1764780009263,3.2078,3099.8,3099.7,0.7742]
[1764780009461,3.2078,3099.8,3099.7,1.5029]
[1764780009665,0.00256516,3100.1,3100.0,1.5029]
[1764780009868,1.51196516,3100.1,3099.6,3.2078]
[1764780010066,0.00256516,3100.1,3100.0,1.9405]
[1764780010568,1.51196516,3100.1,3100.0,0.7742]
[1764780011065,0.00256516,3100.1,3099.6,1.5059645]
[1764780011470,0.78136516,3100.1,3100.0,1.5029]
[1764780011771,0.00256516,3100.1,3100.0,1.9405]
[1764780012572,1.51196516,3100.1,3099.6,3.2108645]
[1764780013865,1.5094,3099.7,3099.6,3.2108645]
[1764780014265,0.78136516,3100.1,3100.0,1.5029]
[1764780014471,0.00256516,3100.1,3100.0,1.9405]
[1764780014668,1.51196516,3100.1,3099.6,3.2108645]
[1764780015373,0.00256516,3100.1,3100.0,1.9405]
[1764780016665,0.00256516,3100.1,3100.0,5.1483]
[1764780016866,3.2078,3100.7,3100.6,1.5029]
[1764780017568,1.5094,3100.6,3100.0,3.6454]
[1764780017869,1.51666255,3100.6,3100.0,3.6454]
[1764780018068,1.5094,3100.1,3100.0,0.7742]
[1764780018368,0.78606255,3100.6,3100.5,0.7742]
[1764780018571,1.51666255,3100.6,3100.5,1.9405]
[1764780018873,1.51666255,3100.6,3100.1,3.2078]
[1764780019668,0.00726255,3100.6,3100.5,1.9405]
[1764780020467,0.00726255,3100.6,3100.5,5.1483]
[1764780020668,3.2078,3101.1,3100.5,5.1483]
[1764780020871,3.2078,3101.1,3101.0,1.9405]
[1764780021575,3.9866,3101.6,3101.5,0.7742]
[1764780021777,3.99004462,3101.6,3101.5,1.9405]
[1764780021970,0.7788,3101.3,3101.2,0.77903715]
[1764780022170,0.00344462,3101.6,3101.2,1.50773715]
[1764780022372,0.78224462,3101.6,3101.5,0.7742]
[1764780022571,0.78224462,3101.6,3101.5,1.5029]
[1764780023173,0.00344462,3101.6,3101.5,1.5029]
[1764780023382,0.00344462,3101.6,3101.5,1.9405]
[1764780024875,0.78224462,3101.6,3101.5,1.9405]
[1764780025067,1.51284462,3101.6,3101.2,0.00483715]
[1764780025275,4.72064462,3101.6,3101.2,0.00483715]
[1764780026186,0.7788,3101.3,3101.2,0.77903715]
[1764780026483,0.7788,3101.3,3101.2,1.50773715]
[1764780026671,1.5094,3101.3,3101.2,0.00483715]
[1764780030183,0.7788,3100.5,3100.4,3.982]
[1764780030396,1.5094,3100.5,3100.0,0.4376]
[1764780030888,1.5094,3100.5,3100.4,0.7742]
[1764780031386,1.5094,3100.5,3100.1,0.00483715]
[1764780032884,0.7788,3100.2,3100.1,0.77903715]
[1764780033183,1.5094,3100.2,3100.1,0.00483715]
[1764780033580,4.7172,3100.2,3100.1,0.00483715]
[1764780033784,4.7172,3100.2,3099.6,0.0030645]
[1764780033785,4.87845,3100.2,3099.6,0.0030645]
[1764780034483,4.09965,3100.2,3099.6,0.0030645]
[1764780034683,0.766,3099.7,3099.6,1.50230165]
[1764780034884,40.8,3100.1,3099.6,1.50230165]
[1764780035080,3.97863715,3100.2,3100.1,0.7254]
[1764780035286,3.21263715,3100.2,3100.1,1.4944]
[1764780035679,3.97863715,3100.2,3100.1,1.4944]
[1764780035881,3.97863715,3100.2,3100.1,0.7254]
[1764780036589,0.00483715,3100.2,3100.1,1.4944]
[1764780044695,4.7152,3101.0,3100.9,0.762]
[1764780044989,5.41788185,3101.0,3100.9,0.762]
[1764780045579,3.91048185,3101.0,3100.9,1.5533]
[1764780045778,4.63278185,3101.0,3100.9,1.5533]
[1764780045998,3.2078,3101.0,3100.9,1.5533]
[1764780046286,0.00483715,3101.3,3100.9,1.5533]
[1764780046492,1.74955121,3101.2,3101.1,0.762]
[1764780046686,1.74955121,3101.2,3101.1,1.5533]
[1764780046889,1.5074,3101.1,3101.0,1.2121]
[1764780047081,2.21026208,3101.1,3101.0,1.2121]
[1764780047286,1.5074,3101.1,3101.0,1.2121]
[1764780047692,1.5074,3101.1,3101.0,0.762]
[1764780048391,1.51223715,3101.3,3101.2,0.762]
[1764780048599,1.5074,3101.1,3101.0,2.0034]
[1764780048792,1.5074,3101.1,3101.0,1.2121]
[1764780049093,1.5074,3101.1,3101.0,0.762]
[1764780049490,1.5074,3101.1,3101.0,1.5533]
[1764780049691,1.51223715,3101.3,3101.2,0.762]
[1764780049890,2.21508391,3101.3,3101.2,1.5533]
[1764780050195,0.00483715,3101.3,3101.2,1.5533]
[1764780050793,1.5074,3101.1,3101.0,2.0034]
[1764780051093,1.51223715,3101.3,3101.2,1.5533]
[1764780051997,1.5074,3101.1,3100.5,3.6579]
[1764780052596,1.5074,3100.6,3100.5,5.2112]
[1764780052785,0.7223,3100.6,3100.5,5.2112]
[1764780052989,0.16602715,3101.3,3100.5,5.2112]
[1764780053188,0.70289297,3101.2,3100.5,5.2112]
[1764780053800,1.42519297,3101.2,3101.1,1.5533]
[1764780053993,1.5074,3101.2,3101.1,0.762]
[1764780054290,1.51223715,3101.3,3101.2,0.762]
[1764780054497,2.21538183,3101.3,3101.2,0.762]
[1764780054700,2.21538183,3101.3,3101.2,1.5533]
[1764780055296,0.70798183,3101.3,3101.2,1.5533]
[1764780055494,0.00483715,3101.3,3101.2,1.5533]
[1764780056101,3.2078,3102.2,3101.5,2.0034]
[1764780056497,4.7152,3102.2,3102.1,0.762]
[1764780056696,4.7152,3102.2,3102.1,1.5533]
[1764780057002,4.71802978,3102.2,3102.1,0.76536734]
[1764780057402,1.51022978,3102.2,3102.1,1.55666734]
[1764780057602,0.00483715,3102.5,3102.4,1.5533]
[1764780058608,0.00768235,3102.5,3102.4,1.5533]
[1764780058804,0.72998235,3102.5,3102.4,1.5533]
[1764780059501,1.51508235,3102.5,3102.1,0.00336734]
[1764780059702,0.00768235,3102.5,3102.4,1.5533]
[1764780059903,3.9301,3103.1,3103.0,0.762]
[1764780060208,4.7152,3103.1,3103.0,1.2121]
[1764780060397,3.2078,3103.1,3103.0,2.0034]
[1764780060901,4.71877935,3103.1,3103.0,1.2121]
[1764780061409,0.7223,3102.6,3102.5,2.0034]
[1764780061603,1.5074,3102.6,3102.5,1.90603359]
[1764780061813,1.5074,3102.6,3102.5,0.69393359]
[1764780062006,1.5074,3102.2,3102.1,0.00336734]
[1764780062200,1.5074,3102.2,3102.1,0.76536734]
[1764780062407,0.7223,3102.2,3102.1,0.76536734]
[1764780062707,1.5074,3102.2,3102.1,0.00336734]
[1764780062906,1.5074,3102.2,3102.1,0.76536734]
[1764780063107,0.7223,3102.2,3102.1,1.55666734]
[1764780063303,1.5074,3102.2,3102.1,0.76536734]
[1764780063705,1.5074,3102.2,3102.1,0.00336734]
[1764780063905,4.7152,3102.2,3102.1,0.00336734]
[1764780066616,3.9301,3102.2,3102.1,1.48156734]
[1764780066914,3.2078,3102.2,3102.1,1.48156734]
[1764780068217,3.9756,3102.2,3102.1,1.48156734]
[1764780069112,4.7471,3102.2,3102.1,0.72206734]
[1764780069317,4.7471,3102.2,3102.1,0.00336734]
[1764780071122,1.5393,3101.2,3101.1,3.9265]
[1764780072031,1.5393,3101.2,3101.1,3.2107329]
[1764780072327,1.5393,3101.2,3101.1,3.9294329]
[1764780072525,1.5393,3101.2,3101.1,0.0029329]
[1764780073623,4.7471,3101.2,3101.1,0.0029329]
[1764780074226,0.16121,3100.9,3099.9,1.73209531]
[1764780074526,4.7471,3100.1,3100.0,1.1624]
[1764780074725,1.5393,3100.0,3099.5,0.4437]
[1764780075225,1.54188633,3100.0,3099.5,0.44734717]
[1764780075828,0.7678,3099.6,3099.5,1.92554717]
[1764780076528,0.00483715,3099.9,3099.5,1.92554717]
[1764780077323,1.5393,3099.6,3099.5,2.68504717]
[1764780077525,0.7678,3099.6,3099.5,1.92554717]
[1764780077927,0.00483715,3099.9,3099.5,1.92554717]
[1764780078129,0.00483715,3099.9,3099.8,1.4782]
[1764780078335,1.54413715,3099.9,3099.8,0.7187]
[1764780079230,0.77263715,3099.9,3099.8,1.4782]
[1764780079635,0.00483715,3099.9,3099.8,1.4782]
[1764780080134,0.77263715,3099.9,3099.8,1.4782]
[1764780080335,1.54413715,3099.9,3099.5,0.44734717]
[1764780081035,1.54413715,3099.9,3099.8,0.7187]
[1764780082037,1.5393,3099.6,3099.5,1.16604717]
[1764780082230,0.00483715,3099.9,3099.5,1.92554717]
[1764780082435,0.7678,3099.6,3099.5,1.92554717]
[1764780082934,1.5393,3099.6,3099.5,1.16604717]
[1764780083242,1.5393,3099.6,3099.5,0.00364717]
[1764780083540,0.7678,3099.6,3099.5,1.92554717]
[1764780084325,1.5393,3099.6,3099.5,1.16604717]